bitfinex-derivatives/quotes_BNBF0:USTF0_20250303
["timestamp","ask_amount","ask_price","bid_price","bid_amount"]
[1740989816375,0.33079175,604.61,603.54,0.26620917]
[1740989816575,0.33079175,604.61,603.52,1.2133672]
[1740989816776,0.33079175,604.61,603.53,0.26620598]
[1740989820471,1.9855399,604.61,603.53,0.26620598]
[1740989820675,1.65474815,604.6,603.53,0.26620598]
[1740989820876,1.98576378,604.59,603.53,0.26620598]
[1740989821079,1.98576378,604.59,602.9,1.4560407]
[1740989821080,1.98576925,604.58,603.51,1.2133672]
[1740989821274,0.33081363,604.57,603.52,0.26625033]
[1740989822579,1.65496109,604.56,603.52,0.26625033]
[1740989822781,1.65496109,604.55,603.52,0.26625033]
[1740989822978,1.65496109,604.54,603.52,0.26625033]
[1740989823284,1.65496109,604.53,603.52,0.26625033]
[1740989823481,1.65496109,604.52,603.52,0.26625033]
[1740989823679,1.65496109,604.51,603.52,0.26625033]
[1740989823982,1.65496109,604.5,603.52,0.26625033]
[1740989824282,1.52881363,604.57,603.53,0.26625033]
[1740989824485,1.421,604.49,603.47,0.26625033]
[1740989824680,1.6554444,604.48,603.48,0.26625033]
[1740989824881,1.6554444,604.47,603.47,0.26625033]
[1740989825082,1.6554444,604.46,603.48,0.26625033]
[1740989825280,1.6554444,604.45,603.47,0.26625033]
[1740989825481,1.6554444,604.44,603.48,0.26625033]
[1740989825678,1.6554444,604.43,603.49,0.26625033]
[1740989825881,1.6554444,604.42,603.47,0.26625033]
[1740989826083,2.64871104,604.48,603.48,0.26625033]
[1740989826084,1.6554444,604.41,603.48,0.26625033]
[1740989826285,1.6554444,604.4,603.47,0.26625033]
[1740989826579,1.6554444,604.39,603.48,0.26625033]
[1740989826782,1.6554444,604.38,603.41,0.26625033]
[1740989826981,1.454,604.4,603.42,0.26625033]
[1740989826982,1.98636751,604.37,603.42,0.26625033]
[1740989827183,0.33092858,604.36,603.43,0.26625033]
[1740989827377,0.33092858,604.36,603.41,0.26625033]
[1740989827579,0.33092858,604.36,603.42,0.26625033]
[1740989827777,0.33092858,604.36,603.43,0.26625033]
[1740989827986,1.6556077,604.35,603.44,0.26625033]
[1740989828278,1.98654723,604.34,603.4,1.2133672]
[1740989828485,1.454,604.4,603.4,1.2133672]
[1740989828486,1.98655271,604.33,603.41,0.26638325]
[1740989828684,1.98655818,604.32,603.41,0.26638325]
[1740989828883,1.98656366,604.31,603.41,0.26638325]
[1740989829178,1.98656914,604.3,603.41,0.26638325]
[1740989829384,1.6556077,604.29,603.41,0.26638325]
[1740989829585,1.454,604.4,603.41,0.26638325]
[1740989829586,1.98658009,604.28,603.41,0.26638325]
[1740989829785,1.98658557,604.27,603.41,0.26638325]
[1740989829986,1.6556077,604.26,603.41,0.26638325]
[1740989830186,0.3309943,604.24,603.41,0.26638325]
[1740989830380,1.6556077,604.23,603.41,0.26638325]
[1740989830584,1.98661296,604.22,603.41,0.26638325]
[1740989830779,1.454,604.4,603.41,0.26638325]
[1740989830780,1.98661844,604.21,603.41,0.26638325]
[1740989830986,1.98662391,604.2,603.42,0.26638325]
[1740989831179,1.98662939,604.19,603.18,0.26638325]
[1740989831381,1.6556077,604.18,603.17,1.2133672]
[1740989831579,0.33102169,604.19,603.17,1.2133672]
[1740989831580,1.6556077,604.17,603.18,0.26645385]
[1740989831786,1.6556077,604.16,603.18,0.26645385]
[1740989831984,1.6556077,604.15,603.18,0.26645385]
[1740989832190,1.6556077,604.14,603.18,0.26645385]
[1740989832386,1.6556077,604.13,603.18,0.26645385]
[1740989832587,1.6556077,604.18,603.19,0.26646113]
[1740989832793,1.98664035,604.17,603.18,0.26646113]
[1740989832995,1.98664583,604.16,603.19,0.26646113]
[1740989833293,1.98665131,604.15,603.2,0.26646113]
[1740989833489,1.98665679,604.14,603.18,0.26646113]
[1740989833688,0.33104909,604.14,603.19,0.26646113]
[1740989833892,0.33104909,604.14,603.03,0.26646113]
[1740989834094,0.33104909,604.14,603.04,0.26646113]
[1740989834293,0.33104909,604.14,603.03,0.26646113]
[1740989835789,0.33104909,604.14,603.04,0.26645329]
[1740989835994,0.33104909,604.14,603.03,0.26645329]
[1740989836195,0.33104909,604.14,603.04,0.26645329]
[1740989836395,1.573,604.13,603.03,0.26645329]
[1740989836598,0.33106005,604.12,603.04,0.26645329]
[1740989836798,0.33106005,604.12,602.95,0.26645329]
[1740989837005,0.33106005,604.12,602.94,1.2133672]
[1740989837006,0.33106005,604.12,602.96,0.26645329]
[1740989837193,0.33106005,604.12,602.95,0.26645329]
[1740989837397,0.33106005,604.12,602.96,0.26645329]
[1740989837598,1.438,604.11,602.97,0.26645329]
[1740989837805,1.438,604.11,602.98,0.26645329]
[1740989837994,1.438,604.11,602.95,0.26645329]
[1740989838198,1.438,604.11,602.96,0.26645329]
[1740989838396,1.438,604.11,602.95,0.26645329]
[1740989838595,1.438,604.11,602.96,0.26645329]
[1740989838797,1.438,604.11,602.72,1.2133672]
[1740989838798,1.438,604.11,602.95,0.26645329]
[1740989838994,1.438,604.11,602.96,0.59815025]
[1740989839199,1.438,604.11,602.97,0.26645329]
[1740989839798,1.719,604.1,602.97,0.26645329]
[1740989840401,1.719,604.1,602.98,0.33168595]
[1740989840798,1.719,604.1,602.99,0.26635421]
[1740989840998,1.719,604.1,603.0,0.33167495]
[1740989841197,1.719,604.1,603.01,0.26635421]
[1740989841495,1.719,604.1,603.02,0.33166395]
[1740989841700,1.199,604.09,603.03,0.26635421]
[1740989842606,1.199,604.09,603.05,1.2133672]
[1740989842904,1.199,604.09,603.06,0.26635421]
[1740989845103,1.199,604.09,603.06,1.47972141]
[1740989845301,1.199,604.09,603.07,0.26635421]
[1740989847203,1.199,604.09,603.08,0.26640435]
[1740989847402,1.199,604.09,603.07,0.26640435]
[1740989847603,1.199,604.09,603.08,0.26640435]
[1740989847803,1.199,604.09,603.07,0.26640435]
[1740989848004,1.199,604.09,603.08,0.26640435]
[1740989848201,1.199,604.09,603.07,0.26640435]
[1740989848402,1.199,604.09,603.08,0.26640435]
[1740989848606,1.199,604.09,603.03,0.26640435]
[1740989850305,1.199,604.09,603.02,0.33166395]
[1740989850506,1.199,604.09,603.03,0.26636554]
[1740989851204,1.199,604.09,603.12,1.2133672]
[1740989851409,1.199,604.09,603.13,0.26636554]
[1740989854206,1.199,604.09,603.36,1.2133672]
[1740989854408,1.199,604.09,603.37,0.26636554]
[1740989855205,1.199,604.09,603.36,1.2133672]
[1740989855407,1.199,604.09,603.37,0.26630986]
[1740989855809,1.438,604.11,603.37,0.26630986]
[1740989856010,1.0,604.08,603.37,0.26630986]
[1740989856212,1.0,604.08,603.42,1.2133672]
[1740989856511,1.952,604.08,603.43,0.26630986]
[1740989856711,4.697,604.08,603.43,0.26630986]
[1740989858314,4.697,604.08,603.42,1.2133672]
[1740989858515,4.697,604.08,603.43,0.26637971]
[1740989858718,4.697,604.08,603.4,1.2133672]
[1740989858917,4.697,604.08,603.41,0.26638324]
[1740989859218,5.897,604.08,603.41,0.26638324]
[1740989861614,5.897,604.08,603.4,1.2133672]
[1740989861921,5.897,604.08,603.41,0.2663701]
[1740989862220,5.897,604.08,603.42,0.2663701]
[1740989862420,5.897,604.08,603.29,0.2663701]
[1740989862627,5.897,604.08,603.3,0.2663701]
[1740989862814,5.897,604.08,603.31,0.2663701]
[1740989863117,5.897,604.08,603.28,1.2133672]
[1740989863317,5.897,604.08,603.46,1.2133672]
[1740989863521,5.897,604.08,603.47,0.2663734]
[1740989864119,7.448,604.08,603.47,0.2663734]
[1740989865621,7.448,604.08,603.48,0.2663734]
[1740989865822,7.448,604.08,603.49,0.2663734]
[1740989866018,7.448,604.08,603.5,0.2663734]
[1740989866218,7.448,604.08,603.51,0.2663734]
[1740989866417,7.448,604.08,603.46,0.2663734]
[1740989866622,7.448,604.08,603.47,0.26636797]
[1740989866822,7.448,604.08,603.46,0.26636797]
[1740989867018,7.448,604.08,603.45,1.2133672]
[1740989867019,7.448,604.08,603.47,0.26636797]
[1740989867222,7.448,604.08,603.45,1.2133672]
[1740989867223,7.448,604.08,603.46,0.26636797]
[1740989867423,7.448,604.08,603.47,0.26636797]
[1740989867623,7.448,604.08,603.46,0.26636797]
[1740989867819,8.734,604.08,603.47,0.26636797]
[1740989868125,8.734,604.08,603.45,1.2133672]
[1740989868325,8.734,604.08,603.46,0.26637054]
[1740989871523,8.734,604.08,603.49,1.2133672]
[1740989871726,8.734,604.08,603.5,0.26637054]
[1740989873127,8.734,604.08,603.49,1.2133672]
[1740989873930,8.734,604.08,603.52,1.2133672]
[1740989874322,1.98710148,604.07,603.52,1.2133672]
[1740989874527,1.98710696,604.06,603.52,1.2133672]
[1740989874724,0.33109293,604.06,603.52,1.2133672]
[1740989874924,1.65601403,604.05,603.52,1.2133672]
[1740989875128,1.65601403,604.04,603.52,1.2133672]
[1740989875330,1.65601403,604.03,603.52,1.2133672]
[1740989875532,1.65601403,604.02,603.52,1.2133672]
[1740989875723,1.65601403,604.01,603.52,1.2133672]
[1740989875929,1.6561179,604.05,603.52,1.2133672]
[1740989876129,1.6561179,604.04,603.52,1.2133672]
[1740989876330,1.6561179,604.03,603.52,1.2133672]
[1740989876532,1.6561179,604.02,603.34,1.2133672]
[1740989876732,0.33109293,604.06,603.34,1.2133672]
[1740989876733,1.6561179,604.01,603.35,0.26645773]
[1740989877034,1.65607398,604.05,603.35,0.26645773]
[1740989877234,1.65607398,604.04,603.35,0.26645773]
[1740989877434,1.65607398,604.03,603.35,0.26645773]
[1740989877630,1.65607398,604.02,603.35,0.26645773]
[1740989877931,1.65609889,604.01,603.35,0.26645773]
[1740989878135,1.65609892,604.0,603.35,0.26645773]
[1740989878334,1.65611795,603.99,603.35,0.26645773]
[1740989878534,1.65611923,603.98,603.35,0.26645773]
[1740989878831,1.65613082,603.97,603.34,1.2133672]
[1740989879135,1.65613082,603.96,603.33,1.2133672]
[1740989879434,1.65613082,603.95,603.33,1.2133672]
[1740989879636,1.65613082,603.94,603.33,1.2133672]
[1740989879934,1.65613082,603.93,603.33,1.2133672]
[1740989880134,1.65613082,603.92,603.33,1.2133672]
[1740989880435,1.98730599,603.91,603.33,1.2133672]
[1740989880636,1.98731147,603.9,603.33,1.2133672]
[1740989880836,1.65613082,603.89,603.33,1.2133672]
[1740989881033,1.65613082,603.88,603.33,1.2133672]
[1740989881238,1.65613082,603.87,603.33,1.2133672]
[1740989881439,1.65658021,603.86,603.06,1.2133672]
[1740989881640,1.65658021,603.85,603.07,0.26653801]
[1740989881838,1.65658021,603.84,603.07,0.26653801]
[1740989882139,0.33118065,603.9,603.07,0.26653801]
[1740989882339,1.65649503,603.89,603.07,0.26653801]
[1740989882540,1.65649503,603.88,603.07,0.26653801]
[1740989882738,0.33118065,603.9,603.07,0.26653801]
[1740989882934,1.65632516,603.89,603.07,0.26653801]
[1740989883140,0.33118065,603.9,603.07,0.26653801]
[1740989883841,1.316,603.89,603.07,0.26653801]
[1740989884536,1.65637902,603.88,603.07,0.26653801]
[1740989884737,1.65637902,603.87,603.07,0.26653801]
[1740989884933,1.65637902,603.86,603.04,0.26653801]
[1740989885141,1.316,603.89,603.05,0.26653801]
[1740989885337,1.371,603.85,603.06,0.26653801]
[1740989885532,1.371,603.85,603.07,0.26653801]
[1740989885738,1.371,603.85,603.04,0.26653801]
[1740989885939,1.371,603.85,603.05,0.26653801]
[1740989886140,1.371,603.85,603.06,0.26653801]
[1740989886339,1.371,603.85,603.07,0.26653801]
[1740989886539,1.371,603.85,603.04,0.26653801]
[1740989886738,1.371,603.85,603.05,0.26653801]
[1740989886939,1.371,603.85,603.06,0.26653801]
[1740989887144,1.371,603.85,602.96,0.26653801]
[1740989887337,1.65647264,603.84,602.97,0.26653801]
[1740989887538,1.371,603.85,602.96,0.26653801]
[1740989887539,1.6565403,603.83,602.96,0.26653801]
[1740989887739,1.6565403,603.82,602.95,1.2133672]
[1740989887945,1.6565403,603.84,602.97,0.26653195]
[1740989888151,1.371,603.85,602.98,0.26653195]
[1740989888351,1.65655431,603.84,602.99,0.26653195]
[1740989888544,1.371,603.85,602.99,0.26653195]
[1740989888743,1.65656437,603.84,602.95,1.2133672]
[1740989888950,1.65656437,603.83,602.95,1.2133672]
[1740989889250,1.371,603.85,602.95,1.2133672]
[1740989890151,1.371,603.85,602.92,1.2133672]
[1740989890352,1.371,603.85,602.93,0.26653654]
[1740989891053,1.371,603.85,602.94,0.26650795]
[1740989891255,1.371,603.85,602.95,0.26650795]
[1740989891454,1.371,603.85,602.93,0.26650795]
[1740989891661,1.371,603.85,602.92,1.2133672]
[1740989891662,1.371,603.85,602.94,0.26650795]
[1740989891858,1.371,603.85,603.01,1.2133672]
[1740989892060,1.371,603.85,603.02,0.26650795]
[1740989892759,1.371,603.85,603.03,0.26650779]
[1740989892952,1.371,603.85,603.02,0.26650779]
[1740989893957,1.292,603.84,603.02,0.26650779]
[1740989894355,1.292,603.84,603.01,1.2133672]
[1740989894552,1.292,603.84,603.02,0.26651922]
[1740989895259,1.292,603.84,603.04,1.2133672]
[1740989895458,1.292,603.84,603.05,0.26651922]
[1740989898162,1.292,603.84,603.06,0.26651922]
[1740989898361,1.292,603.84,603.0,0.26651922]
[1740989899058,0.941,603.83,603.0,0.26651922]
[1740989899962,2.374,603.83,603.0,0.26651922]
[1740989900562,2.374,603.83,603.08,1.2133672]
[1740989900862,2.374,603.83,603.09,0.26651922]
[1740989901368,2.374,603.83,603.1,0.26649649]
[1740989901662,2.374,603.83,603.11,0.26649649]
[1740989901857,2.374,603.83,603.09,0.26649649]
[1740989902057,2.374,603.83,603.1,0.26649649]
[1740989902260,2.374,603.83,603.09,0.26649649]
[1740989902669,2.374,603.83,603.12,1.2133672]
[1740989902860,2.374,603.83,603.13,0.26649649]
[1740989903261,3.338,603.83,603.13,0.26649649]
[1740989904662,3.338,603.83,603.14,0.2664712]
[1740989904859,3.338,603.83,603.13,0.2664712]
[1740989905063,3.338,603.83,603.14,0.2664712]
[1740989905260,3.338,603.83,603.13,0.2664712]
[1740989906064,3.338,603.83,603.12,1.2133672]
[1740989907667,3.338,603.83,603.13,0.26647085]
[1740989907867,3.338,603.83,602.99,1.2133672]
[1740989908062,4.261,603.83,603.0,0.26647085]
[1740989910564,4.261,603.83,603.11,1.2133672]
[1740989910868,5.711,603.83,603.12,0.26647085]
[1740989911367,5.711,603.83,603.11,1.2133672]
[1740989911561,5.711,603.83,603.12,0.2664737]
[1740989912966,5.711,603.83,603.12,1.4798409]
[1740989913170,5.711,603.83,603.13,0.2664737]
[1740989915169,5.711,603.83,603.27,1.2133672]
[1740989915367,5.711,603.83,603.28,0.2664737]
[1740989917867,5.711,603.83,603.31,1.2133672]
[1740989918069,5.711,603.83,603.32,0.26630188]
[1740989918369,4.278,603.83,603.32,0.26630188]
[1740989918564,5.546,603.83,603.32,0.26630188]
[1740989919867,5.546,603.83,603.43,1.2133672]
[1740989920065,5.546,603.83,603.44,0.26630188]
[1740989921168,4.605,603.83,603.44,0.26630188]
[1740989921869,3.155,603.83,603.44,0.26630188]
[1740989922867,3.155,603.83,603.43,1.2133672]
[1740989923068,3.155,603.83,603.44,0.26628232]
[1740989923269,2.191,603.83,603.44,0.26628232]
[1740989924571,2.191,603.83,603.45,0.26634653]
[1740989924871,2.191,603.83,603.46,0.26634653]
[1740989925171,2.191,603.83,603.47,0.26634653]
[1740989925370,2.191,603.83,603.33,0.26634653]
[1740989927371,2.191,603.83,603.34,0.26634653]
[1740989927665,2.191,603.83,603.35,0.26634653]
[1740989928067,2.191,603.83,603.36,0.26634653]
[1740989928270,2.191,603.83,603.13,0.26634653]
[1740989928465,2.191,603.83,603.14,0.26634653]
[1740989928670,2.191,603.83,603.13,0.26634653]
[1740989929471,2.191,603.83,603.11,1.2133672]
[1740989929675,2.191,603.83,603.12,0.26636076]
[1740989930671,2.191,603.83,603.13,0.26636076]
[1740989930871,2.191,603.83,603.14,0.26636076]
[1740989931071,2.191,603.83,603.15,0.26636076]
[1740989931273,2.191,603.83,603.27,1.2133672]
[1740989931469,2.191,603.83,603.28,0.26636076]
[1740989934074,2.191,603.83,603.3,1.2133672]
[1740989934270,2.191,603.83,603.31,0.26636076]
[1740989934773,2.191,603.83,603.32,0.26632686]
[1740989934973,2.191,603.83,603.31,0.26632686]
[1740989935270,1.268,603.83,603.32,0.26632686]
[1740989935473,1.268,603.83,603.3,1.2133672]
[1740989935474,1.268,603.83,603.33,0.26632686]
[1740989935673,1.268,603.83,603.34,0.26632686]
[1740989935867,1.268,603.83,603.35,0.26632686]
[1740989936173,1.268,603.83,603.36,0.26632686]
[1740989936373,1.268,603.83,603.37,0.26632686]
[1740989936569,1.268,603.83,603.38,0.26632686]
[1740989936767,1.268,603.83,603.39,0.26632686]
[1740989936968,1.268,603.83,603.4,0.26632686]
[1740989937173,1.268,603.83,603.41,0.26632686]
[1740989937367,1.268,603.83,602.83,1.4560407]
[1740989937368,1.268,603.83,603.42,0.26632686]
[1740989937568,1.268,603.83,603.28,0.26632686]
[1740989937772,1.268,603.83,603.29,0.26632686]
[1740989938174,1.268,603.83,603.3,0.26632686]
[1740989938370,2.4,603.83,603.28,0.26632686]
[1740989938571,2.4,603.83,603.29,0.26632686]
[1740989938769,2.4,603.83,603.28,0.26632686]
[1740989938968,2.4,603.83,603.29,0.26632686]
[1740989939172,2.4,603.83,603.28,0.26632686]
[1740989939372,2.4,603.83,603.27,1.2133672]
[1740989939373,2.4,603.83,603.29,0.26632686]
[1740989939575,2.4,603.83,603.3,0.26628916]
[1740989939775,2.4,603.83,603.31,0.26628916]
[1740989939971,2.4,603.83,603.32,0.26628916]
[1740989940172,2.4,603.83,603.33,0.26628916]
[1740989940373,2.4,603.83,603.34,0.26628916]
[1740989940569,2.4,603.83,603.26,0.26628916]
[1740989940769,2.4,603.83,603.27,0.33152651]
[1740989940974,2.4,603.83,603.28,0.26628916]
[1740989941177,2.4,603.83,603.29,0.33151552]
[1740989941376,2.4,603.83,603.3,0.26628916]
[1740989941677,3.601,603.83,603.31,0.33150453]
[1740989941979,3.601,603.83,603.32,0.26628916]
[1740989942278,3.601,603.83,603.4,1.2133672]
[1740989942477,3.601,603.83,603.41,0.26628916]
[1740989944375,3.601,603.83,603.48,1.2133672]
[1740989944571,3.601,603.83,603.49,0.26628916]
[1740989947375,3.601,603.83,603.59,1.2133672]
[1740989947578,3.601,603.83,603.6,0.26628916]
[1740989950085,3.601,603.83,603.62,1.2133672]
[1740989950385,3.601,603.83,603.63,0.2661599]
[1740989953585,2.469,603.83,603.63,0.2661599]
[1740989953783,2.469,603.83,603.62,0.2661599]
[1740989958585,2.469,603.83,603.52,1.2133672]
[1740989958786,2.469,603.83,603.53,0.26617441]
[1740989961288,2.469,603.83,603.53,1.47954161]
[1740989961487,2.469,603.83,603.54,0.26617441]
[1740989961890,2.469,603.83,603.55,0.26619211]
[1740989962084,2.469,603.83,603.56,0.26619211]
[1740989962391,2.469,603.83,603.57,0.26619211]
[1740989962690,2.469,603.83,603.58,0.26619211]
[1740989962891,2.469,603.83,603.54,0.26619211]
[1740989963091,2.469,603.83,603.55,0.26619211]
[1740989963289,2.469,603.83,603.56,0.26619211]
[1740989963485,2.469,603.83,603.53,1.2133672]
[1740989963693,2.469,603.83,603.54,0.26617618]
[1740989964492,2.469,603.83,603.54,1.47954338]
[1740989964689,1.268,603.83,603.55,0.26617618]
[1740989966787,1.268,603.83,603.62,1.2133672]
[1740989966993,1.268,603.83,603.63,0.26618602]
[1740989968396,1.268,603.83,603.64,0.2661788]
[1740989968697,1.268,603.83,603.65,0.2661788]
[1740989968890,1.268,603.83,603.63,0.2661788]
[1740989969089,1.268,603.83,603.62,1.2133672]
[1740989969090,1.268,603.83,603.64,0.2661788]
[1740989969290,1.268,603.83,603.63,0.2661788]
[1740989969491,1.268,603.83,603.64,0.2661788]
[1740989969693,1.268,603.83,603.71,1.2133672]
[1740989970100,1.268,603.83,603.72,0.26618302]
[1740989972502,1.268,603.83,603.76,1.2133672]
[1740989972700,1.268,603.83,603.77,0.26618302]
[1740989974299,1.268,603.83,603.79,1.2133672]
[1740989974505,1.268,603.83,603.8,0.26618302]
[1740989974905,1.268,603.83,603.81,0.26617661]
[1740989975105,1.268,603.83,603.8,0.26617661]
[1740989975307,1.268,603.83,603.79,1.2133672]
[1740989975499,1.268,603.83,603.8,0.26617564]
[1740989976408,1.268,603.83,603.55,1.2133672]
[1740989976605,1.214,604.07,603.56,0.26618055]
[1740989977910,2.493,604.07,603.56,0.26618055]
[1740989979510,2.493,604.07,603.8,1.23959583]
[1740989982707,2.493,604.07,603.72,1.23959583]
[1740989982910,2.493,604.07,603.73,0.26625678]
[1740989983312,2.493,604.07,603.72,1.23959583]
[1740989983712,2.493,604.07,603.73,0.26622067]
[1740989984716,2.493,604.07,603.72,1.23959583]
[1740989984906,2.493,604.07,603.73,0.26620216]
[1740989987514,2.493,604.07,603.73,1.50579799]
[1740989987710,2.493,604.07,603.74,0.26620216]
[1740989990511,2.493,604.07,603.76,1.23959583]
[1740989990714,2.493,604.07,603.77,0.26620216]
[1740989991514,2.493,604.07,603.78,0.26618833]
[1740989991815,2.493,604.07,603.79,0.26618833]
[1740989992018,2.493,604.07,603.77,0.26618833]
[1740989992918,2.493,604.07,603.8,1.23959583]
[1740989993119,2.493,604.07,603.81,0.26618548]
[1740989993620,1.279,604.07,603.81,0.26618548]
[1740989994721,1.279,604.07,603.8,1.23959583]
[1740989994921,1.279,604.07,603.81,0.26606758]
[1740989995521,1.279,604.07,603.81,1.50566341]
[1740989995717,1.279,604.07,603.82,0.26606758]
[1740989997821,1.279,604.07,603.91,1.23959583]
[1740989998022,1.279,604.07,603.92,0.26606758]
[1740989999626,1.279,604.07,603.91,1.23959583]
[1740990000522,1.279,604.07,603.87,1.23959583]
[1740990000826,1.279,604.07,603.88,0.26615124]
[1740990003025,1.279,604.07,603.87,1.23959583]
[1740990003227,1.279,604.07,603.74,1.23959583]
[1740990003428,1.279,604.07,603.75,0.26619527]
[1740990005927,1.279,604.07,603.76,0.26619527]
[1740990006129,1.279,604.07,603.61,1.23959583]
[1740990006130,1.279,604.07,603.62,0.26619527]
[1740990007031,1.279,604.07,603.64,1.23959583]
[1740990007232,1.279,604.07,603.65,0.26619527]
[1740990007832,2.546,604.27,603.65,0.26619527]
[1740990009133,1.143,604.26,603.65,0.26619527]
[1740990010932,1.143,604.26,603.64,1.23959583]
[1740990011132,1.145,604.25,603.64,1.23959583]
[1740990011635,1.65542261,604.24,603.64,1.23959583]
[1740990011934,1.65542261,604.23,603.64,1.23959583]
[1740990012137,1.65542261,604.22,603.64,1.23959583]
[1740990012435,1.65549694,604.24,603.64,1.23959583]
[1740990012634,1.65548597,604.24,603.64,1.23959583]
[1740990012831,1.65548597,604.24,603.4,1.2133672]
[1740990012832,1.65548507,604.23,603.4,1.2133672]
[1740990013135,1.65548507,604.24,603.21,1.23959583]
[1740990013329,1.145,604.25,603.22,0.2663365]
[1740990013729,1.65546387,604.24,603.22,0.2663365]
[1740990013929,1.65546387,604.23,603.22,0.2663365]
[1740990014129,1.65546387,604.22,603.22,0.2663365]
[1740990014333,1.65546387,604.24,603.22,0.2663365]
[1740990014531,1.145,604.25,603.22,0.2663365]
[1740990014931,2.80046387,604.25,603.22,0.2663365]
[1740990015134,1.65546387,604.24,603.22,0.2663365]
[1740990015437,1.145,604.25,603.22,0.2663365]
[1740990016137,1.145,604.25,603.23,0.2663365]
[1740990016337,1.145,604.25,603.0,0.2663365]
[1740990016533,1.145,604.25,603.01,0.59800595]
[1740990016840,1.145,604.25,603.02,0.59800045]
[1740990017038,1.145,604.25,603.03,0.2663365]
[1740990017237,1.183,604.24,603.03,0.2663365]
[1740990018341,1.183,604.24,603.06,1.23959583]
[1740990018540,1.183,604.24,603.07,0.2663365]
[1740990019337,0.95,604.23,603.07,0.2663365]
[1740990020439,0.95,604.23,603.03,0.2663365]
[1740990020641,0.95,604.23,603.04,0.2663365]
[1740990020841,0.95,604.23,603.05,0.2663365]
[1740990021036,0.95,604.23,603.06,0.2663365]
[1740990021343,0.95,604.23,603.03,0.2663365]
[1740990023246,3.02163941,604.22,603.03,0.2663365]
[1740990023547,1.65563941,604.21,603.03,0.2663365]
[1740990023742,0.33101621,604.2,603.03,0.2663365]
[1740990023944,1.98665562,604.2,603.03,0.2663365]
[1740990024149,0.33101621,604.2,603.03,0.2663365]
[1740990024442,1.65563941,604.19,603.03,0.2663365]
[1740990024646,1.65563941,604.18,603.03,0.2663365]
[1740990024841,1.65563941,604.17,603.03,0.2663365]
[1740990025046,1.65563941,604.16,603.03,0.2663365]
[1740990025246,1.65563941,604.15,603.03,0.2663365]
[1740990025446,1.65563941,604.14,603.03,0.2663365]
[1740990025643,1.65563941,604.13,603.03,0.2663365]
[1740990025841,0.33101621,604.2,603.03,0.2663365]
[1740990025842,1.65563941,604.12,603.03,0.2663365]
[1740990026040,1.98670494,604.11,603.03,0.2663365]
[1740990026246,1.98671042,604.1,603.03,0.2663365]
[1740990026442,1.366,604.22,603.03,0.2663365]
[1740990026443,1.9867159,604.09,603.03,0.2663365]
[1740990026647,1.98672138,604.08,603.03,0.2663365]
[1740990026947,1.98672686,604.07,603.03,0.2663365]
[1740990027249,0.33109293,604.06,603.03,0.2663365]
[1740990027640,1.65563941,604.05,603.03,0.2663365]
[1740990027849,1.98674331,604.04,602.91,0.2663365]
[1740990028049,1.98685943,604.03,602.91,0.2663365]
[1740990028348,1.98686491,604.02,602.91,0.2663365]
[1740990028544,1.65575005,604.01,602.91,0.2663365]
[1740990028843,1.65575005,604.0,602.91,0.2663365]
[1740990029046,0.33113679,603.98,602.91,0.2663365]
[1740990029348,1.65575005,603.97,602.91,0.2663365]
[1740990029549,1.9868978,603.96,602.67,0.2663365]
[1740990029849,1.366,604.22,602.66,1.23959583]
[1740990029850,1.98690329,603.95,602.68,0.26657493]
[1740990030149,1.98465244,603.94,602.69,0.26657493]
[1740990030454,1.98465792,603.93,602.67,0.26657493]
[1740990030748,1.65349372,603.92,602.68,0.26657493]
[1740990030951,1.65349372,603.91,602.67,0.26657493]
[1740990031149,1.65349372,603.92,602.67,0.26657493]
[1740990031452,0.3311642,603.93,602.66,1.23959583]
[1740990031641,0.3311642,603.93,602.68,0.26651636]
[1740990031842,0.3311642,603.93,602.67,0.26651636]
[1740990032148,0.3311642,603.93,602.68,0.26651636]
[1740990032347,1.605,603.92,602.68,0.26651636]
[1740990032651,0.33117517,603.91,602.68,0.26651636]
[1740990033143,0.33117517,603.91,602.67,0.33185657]
[1740990033349,0.33117517,603.91,602.68,0.26650169]